fUSD/lending_fUSD_20240223
["ID","MTS","AMOUNT","RATE_DAILY","PERIOD"]
[314961272,1708701079203,-153.41,0.00028492,2]
[314961273,1708701079212,-500.0,0.00028493,2]
[314961274,1708701079222,-793.3,0.00028493,2]
[314961275,1708701079231,-500.0,0.00028493,2]
[314961276,1708701079240,-630.6,0.00028493,2]
[314961277,1708701079249,-661.87,0.00028493,2]
[314961278,1708701079259,-635.29576226,0.00028493,2]
[314961279,1708701079268,-500.0,0.00028493,2]
[314961280,1708701079278,-206.72727922,0.00028493,2]
[314961281,1708701079292,-604.636872,0.00028493,2]
[314961282,1708701079301,-159.71,0.00028493,2]
[314961283,1708701079311,-500.0,0.00028493,2]
[314961284,1708701079320,-602.91,0.00028493,2]
[314961285,1708701079329,-500.0,0.00028493,2]
[314961286,1708701079338,-500.0,0.00028493,2]
[314961287,1708701079347,-500.0,0.00028493,2]
[314961288,1708701079356,-500.0,0.00028493,2]
[314961289,1708701079366,-500.0,0.00028493,2]
[314961290,1708701079379,-500.0,0.00028493,2]
[314961291,1708701079389,-500.0,0.00028493,2]
[314961292,1708701079399,-500.0,0.00028493,2]
[314961293,1708701079408,-500.0,0.00028493,2]
[314961294,1708701079418,-587.13,0.00028493,2]
[314961295,1708701079427,-500.0,0.00028493,2]
[314961296,1708701079437,-500.0,0.00028493,2]
[314961297,1708701079446,-500.0,0.00028493,2]
[314961298,1708701079456,-500.0,0.00028493,2]
[314961299,1708701079466,-500.0,0.00028493,2]
[314961300,1708701079475,-500.0,0.00028493,2]
[314961301,1708701079484,-500.0,0.00028493,2]
[314961302,1708701079494,-681.65,0.00028493,2]
[314961303,1708701079503,-500.0,0.00028493,2]
[314961304,1708701079513,-500.0,0.00028493,2]
[314961305,1708701079522,-500.0,0.00028493,2]
[314961306,1708701079532,-801.8,0.00028493,2]
[314961307,1708701079541,-500.0,0.00028493,2]
[314961308,1708701079551,-500.0,0.00028493,2]
[314961309,1708701079560,-500.0,0.00028493,2]
[314961310,1708701079570,-813.81,0.00028493,2]
[314961311,1708701079579,-500.0,0.00028493,2]
[314961312,1708701079589,-500.0,0.00028493,2]
[314961313,1708701079598,-500.0,0.00028493,2]
[314961314,1708701079607,-500.0,0.00028493,2]
[314961315,1708701079617,-4432.9,0.00028493,2]
[314961316,1708701079629,-500.0,0.00028493,2]
[314961317,1708701079638,-1274.45,0.00028493,2]
[314961318,1708701079647,-500.0,0.00028493,2]
[314961319,1708701079657,-500.0,0.00028493,2]
[314961320,1708701079666,-500.0,0.00028493,2]
[314961321,1708701079677,-500.0,0.00028493,2]
[314961322,1708701079686,-1366.3,0.00028493,2]
[314961323,1708701079695,-564.85,0.00028493,2]
[314961324,1708701079703,-983.57,0.00028493,2]
[314961325,1708701079712,-1193.57,0.00028493,2]
[314961326,1708701079722,-482.14,0.00028493,2]
[314961327,1708701079731,-392.50230482,0.00028493,2]
[314961328,1708701079740,-792.31,0.00028493,2]
[314961329,1708701079749,-750.59,0.00028493,2]
[314961330,1708701079759,-500.0,0.00028493,2]
[314961331,1708701079768,-991.76,0.00028493,2]
[314961332,1708701079777,-500.0,0.00028493,2]
[314961333,1708701079786,-666.52,0.00028493,2]
[314961334,1708701079796,-340.01,0.00028493,2]
[314961335,1708701079806,-500.0,0.00028493,2]
[314961336,1708701079815,-523.78,0.00028493,2]
[314961337,1708701079825,-500.0,0.00028493,2]
[314961338,1708701079834,-991.02,0.00028493,2]
[314961339,1708701079843,-631.57,0.00028493,2]
[314961340,1708701079853,-1046.15,0.00028493,2]
[314961341,1708701079862,-235.82368125,0.00028493,2]
[314961342,1708701079875,-521.94,0.00028493,2]
[314961343,1708701079885,-500.0,0.00028493,2]
[314961344,1708701079895,-1367.88,0.00028493,2]
[314961345,1708701079906,-500.0,0.00028493,2]
[314961346,1708701079917,-500.0,0.00028493,2]
[314961347,1708701079927,-500.0,0.00028493,2]
[314961348,1708701079938,-161.28,0.00028493,2]
[314961349,1708701079948,-500.0,0.00028493,2]
[314961350,1708701079957,-763.41,0.00028493,2]
[314961351,1708701079967,-500.0,0.00028493,2]
[314961352,1708701079977,-500.0,0.00028493,2]
[314961353,1708701079986,-500.0,0.00028493,2]
[314961354,1708701079997,-500.0,0.00028493,2]
[314961355,1708701080007,-500.0,0.00028493,2]
[314961356,1708701080017,-3364.26,0.00028493,2]
[314961357,1708701080027,-500.0,0.00028493,2]
[314961358,1708701080037,-500.0,0.00028493,2]
[314961359,1708701080047,-1724.59,0.00028493,2]
[314961360,1708701080057,-500.0,0.00028493,2]
[314961361,1708701080067,-500.0,0.00028493,2]
[314961362,1708701080077,-3079.27,0.00028493,2]
[314961363,1708701080087,-500.0,0.00028493,2]
[314961364,1708701080097,-3702.56,0.00028493,2]
[314961365,1708701080107,-1264.0,0.00028493,2]
[314961366,1708701080118,-500.0,0.00028493,2]
[314961367,1708701080130,-500.0,0.00028493,2]
[314961368,1708701080140,-500.0,0.00028493,2]
[314961369,1708701080150,-500.0,0.00028493,2]
[314961370,1708701080161,-500.0,0.00028493,2]
[314961371,1708701080172,-500.0,0.00028493,2]
[314961372,1708701080182,-500.0,0.00028493,2]
[314961373,1708701080191,-187.42,0.00028493,2]
[314961374,1708701080201,-500.0,0.00028493,2]
[314961375,1708701080211,-1030.19,0.00028493,2]
[314961376,1708701080221,-182.14,0.00028493,2]
[314961377,1708701080231,-4692.19,0.00028493,2]
[314961378,1708701080241,-500.0,0.00028493,2]
[314961379,1708701080251,-500.0,0.00028493,2]
[314961380,1708701080260,-500.0,0.00028493,2]
[314961381,1708701080270,-175.58,0.00028493,2]
[314961382,1708701080280,-1144.99560671,0.00028499,2]
[314961383,1708701080293,-1233.67271921,0.00028499,2]
[314961384,1708701080303,-25201.52107223,0.00028499,2]
[314961385,1708701080312,-2712.89,0.00028505,2]
[314961386,1708701080323,-165.93,0.0002853,2]
[314961387,1708701080332,-365.0805068,0.0002853,2]
[314961388,1708701080342,-487.79,0.00028544,2]
[314961389,1708701080351,-150.0,0.00028589,2]
[314961390,1708701080360,-150.0,0.00028589,2]
[314961391,1708701080372,-150.0,0.00028589,2]
[314961392,1708701080382,-150.354,0.00028589,2]
[314961393,1708701080392,-150.151,0.00028589,2]
[314961394,1708701080402,-250.0,0.00028589,2]
[314961395,1708701080412,-150.255,0.00028589,2]
[314961396,1708701080422,-2693.0,0.00028589,2]
[314961397,1708701080431,-203.663,0.00028589,2]
[314961398,1708701080440,-745.1,0.00028589,2]
[314961399,1708701080449,-458.0,0.00028589,2]
[314961400,1708701080459,-1256.0,0.00028589,2]
[314961401,1708701080468,-168.788,0.00028589,2]
[314961402,1708701080478,-1231.0,0.00028589,2]
[314961403,1708701080488,-430.0,0.00028589,2]
[314961404,1708701080498,-276.0,0.00028589,2]
[314961405,1708701080508,-858.0,0.00028589,2]
[314961406,1708701080518,-321.0,0.00028589,2]
[314961407,1708701080527,-343.0,0.00028589,2]
[314961408,1708701080722,-1138.0,0.00028589,2]
[314961409,1708701080732,-150.0,0.00028589,2]
[314961410,1708701080743,-2891.0,0.00028589,2]
[314961411,1708701080754,-454.0,0.00028589,2]
[314961412,1708701080763,-152.0,0.00028594,3]
[314961413,1708701080773,-1508.4620819,0.000286,2]
[314961414,1708701080783,-150.0,0.0002863,7]
[314961415,1708701080793,-500.0,0.0002863,2]
[314961416,1708701080802,-793.3,0.0002863,2]
[314961417,1708701080812,-447.29,0.0002863,2]
[314961418,1708701080821,-630.6,0.0002863,2]
[314961419,1708701080831,-661.87,0.0002863,2]
[314961420,1708701080841,-500.0,0.0002863,2]
[314961421,1708701080850,-541.64,0.0002863,2]
[314961422,1708701080860,-500.0,0.0002863,2]
[314961423,1708701080872,-212.13,0.0002863,2]
[314961424,1708701080882,-500.0,0.0002863,2]
[314961425,1708701080892,-273.87,0.0002863,2]
[314961426,1708701080901,-249.66,0.0002863,2]
[314961427,1708701080911,-213.25,0.0002863,2]
[314961428,1708701080921,-500.0,0.0002863,2]
[314961429,1708701080930,-198.17,0.0002863,2]
[314961430,1708701080939,-587.13,0.0002863,2]
[314961431,1708701080949,-500.0,0.0002863,2]
[314961432,1708701080958,-511.94039976,0.0002863,2]
[314961433,1708701080968,-500.0,0.0002863,2]
[314961434,1708701080977,-500.0,0.0002863,2]
[314961435,1708701080987,-500.0,0.0002863,2]
[314961436,1708701080996,-500.0,0.0002863,2]
[314961437,1708701081006,-503.47,0.0002863,2]
[314961438,1708701081016,-681.65,0.0002863,2]
[314961439,1708701081026,-516.10250406,0.0002863,2]
[314961440,1708701081035,-500.0,0.0002863,2]
[314961441,1708701081045,-801.8,0.0002863,2]
[314961442,1708701081055,-290.62027065,0.0002863,2]
[314961443,1708701081064,-500.0,0.0002863,2]
[314961444,1708701081074,-500.0,0.0002863,2]
[314961445,1708701081083,-813.81,0.0002863,2]
[314961446,1708701081093,-403.4318319,0.0002863,2]
[314961447,1708701081102,-500.0,0.0002863,2]
[314961448,1708701081112,-500.0,0.0002863,2]
[314961449,1708701081122,-500.0,0.0002863,2]
[314961450,1708701081132,-4432.9,0.0002863,2]
[314961451,1708701081142,-500.0,0.0002863,2]
[314961452,1708701081151,-1274.45,0.0002863,2]
[314961453,1708701081161,-500.0,0.0002863,2]
[314961454,1708701081170,-500.0,0.0002863,2]
[314961455,1708701081180,-1366.3,0.0002863,2]
[314961456,1708701081190,-564.85,0.0002863,2]
[314961457,1708701081199,-983.57,0.0002863,2]
[314961458,1708701081208,-1193.57,0.0002863,2]
[314961459,1708701081218,-792.31,0.0002863,2]
[314961460,1708701081228,-750.59,0.0002863,2]
[314961461,1708701081238,-500.0,0.0002863,2]
[314961462,1708701081248,-991.76,0.0002863,2]
[314961463,1708701081257,-500.0,0.0002863,2]
[314961464,1708701081267,-666.52,0.0002863,2]
[314961465,1708701081278,-523.78,0.0002863,2]
[314961466,1708701081289,-345.66,0.0002863,2]
[314961467,1708701081299,-991.02,0.0002863,2]
[314961468,1708701081309,-631.57,0.0002863,2]
[314961469,1708701081321,-1046.15,0.0002863,2]
[314961470,1708701081331,-521.94,0.0002863,2]
[314961471,1708701081340,-500.0,0.0002863,2]
[314961472,1708701081349,-1367.88,0.0002863,2]
[314961473,1708701081361,-500.0,0.0002863,2]
[314961474,1708701081374,-500.0,0.0002863,2]
[314961475,1708701081385,-500.0,0.0002863,2]
[314961476,1708701081397,-500.0,0.0002863,2]
[314961477,1708701081407,-763.41,0.0002863,2]
[314961478,1708701081418,-500.0,0.0002863,2]
[314961479,1708701081427,-500.0,0.0002863,2]
[314961480,1708701081436,-500.0,0.0002863,2]
[314961481,1708701081446,-500.0,0.0002863,2]
[314961482,1708701081456,-253.884495,0.0002863,2]
[314961483,1708701081466,-3364.26,0.0002863,2]
[314961484,1708701081475,-500.0,0.0002863,2]
[314961485,1708701081486,-500.0,0.0002863,2]
[314961486,1708701081496,-1724.59,0.0002863,2]
[314961487,1708701081506,-500.0,0.0002863,2]
[314961488,1708701081516,-500.0,0.0002863,2]
[314961489,1708701081525,-3079.27,0.0002863,2]
[314961490,1708701081535,-500.0,0.0002863,2]
[314961491,1708701081544,-3702.56,0.0002863,2]
[314961492,1708701081554,-1264.0,0.0002863,2]
[314961493,1708701081563,-634.09098394,0.0002863,2]
[314961494,1708701081573,-500.0,0.0002863,2]
[314961495,1708701081583,-500.0,0.0002863,2]
[314961496,1708701081593,-554.64,0.0002863,2]
[314961497,1708701081603,-500.0,0.0002863,2]
[314961498,1708701081613,-500.0,0.0002863,2]
[314961499,1708701081626,-170.34,0.0002863,2]
[314961500,1708701081636,-1030.19,0.0002863,2]
[314961501,1708701081646,-4692.19,0.0002863,2]
[314961502,1708701081656,-500.0,0.0002863,2]
[314961503,1708701081666,-500.0,0.0002863,2]
[314961504,1708701081676,-500.0,0.0002863,2]
[314961505,1708701081686,-3092.16814372,0.00028648,2]
[314961506,1708701081696,-52181.61913878,0.00028656,2]
[314961507,1708701081705,-164.19,0.00028657,2]
[314961508,1708701081715,-2712.89,0.00028664,2]
[314961509,1708701081725,-153.41,0.00028667,2]
[314961510,1708701081735,-1000.0000489,0.00028699,2]
[314961511,1708701081745,-1000.0,0.00028764,7]
[314961512,1708701081755,-216.84168849,0.00028764,7]
[314961513,1708701081765,-243.8236624,0.00028764,7]
[314961514,1708701081775,-209.25482021,0.00028764,7]
[314961515,1708701081786,-1000.0,0.00028764,7]
[314961516,1708701081796,-3438.52640299,0.00028764,7]
[314961517,1708701081806,-859.63160075,0.00028764,7]
[314961518,1708701081815,-500.0,0.00028767,2]
[314961519,1708701081825,-500.0,0.00028767,2]
[314961520,1708701081835,-793.3,0.00028767,2]
[314961521,1708701081846,-630.6,0.00028767,2]
[314961522,1708701081856,-661.87,0.00028767,2]
[314961523,1708701081867,-264.14,0.00028767,2]
[314961524,1708701081879,-238.05209033,0.00028767,2]
[314961525,1708701081889,-318.33,0.00028767,2]
[314961526,1708701081900,-244.85,0.00028767,2]
[314961527,1708701081910,-587.13,0.00028767,2]
[314961528,1708701081920,-500.0,0.00028767,2]
[314961529,1708701081930,-500.0,0.00028767,2]
[314961530,1708701081940,-220.01,0.00028767,2]
[314961531,1708701081949,-500.0,0.00028767,2]
[314961532,1708701081958,-294.42890731,0.00028767,2]
[314961533,1708701081968,-681.65,0.00028767,2]
[314961534,1708701081977,-214.30335533,0.00028767,2]
[314961535,1708701081987,-801.8,0.00028767,2]
[314961536,1708701081997,-500.0,0.00028767,2]
[314961537,1708701082006,-500.0,0.00028767,2]
[314961538,1708701082016,-813.81,0.00028767,2]
[314961539,1708701082025,-500.0,0.00028767,2]
[314961540,1708701082035,-500.0,0.00028767,2]
[314961541,1708701082045,-330.11,0.00028767,2]
[314961542,1708701082054,-4432.9,0.00028767,2]
[314961543,1708701082064,-1274.45,0.00028767,2]
[314961544,1708701082074,-500.0,0.00028767,2]
[314961545,1708701082084,-182.75,0.00028767,2]
[314961546,1708701082093,-1366.3,0.00028767,2]
[314961547,1708701082103,-564.85,0.00028767,2]
[314961548,1708701082113,-983.57,0.00028767,2]
[314961549,1708701082127,-1193.57,0.00028767,2]
[314961550,1708701082137,-792.31,0.00028767,2]
[314961551,1708701082146,-750.59,0.00028767,2]
[314961552,1708701082156,-500.0,0.00028767,2]
[314961553,1708701082165,-991.76,0.00028767,2]
[314961554,1708701082174,-500.0,0.00028767,2]
[314961555,1708701082184,-666.52,0.00028767,2]
[314961556,1708701082195,-523.78,0.00028767,2]
[314961557,1708701082205,-991.02,0.00028767,2]
[314961558,1708701082214,-631.57,0.00028767,2]
[314961559,1708701082224,-1046.15,0.00028767,2]
[314961560,1708701082233,-521.94,0.00028767,2]
[314961561,1708701082243,-308.35481818,0.00028767,2]
[314961562,1708701082252,-1367.88,0.00028767,2]
[314961563,1708701082261,-500.0,0.00028767,2]
[314961564,1708701082271,-408.27514728,0.00028767,2]
[314961565,1708701082281,-500.0,0.00028767,2]
[314961566,1708701082291,-500.0,0.00028767,2]
[314961567,1708701082301,-763.41,0.00028767,2]
[314961568,1708701082312,-500.0,0.00028767,2]
[314961569,1708701082323,-500.0,0.00028767,2]
[314961570,1708701082332,-500.0,0.00028767,2]
[314961571,1708701082342,-500.0,0.00028767,2]
[314961572,1708701082351,-3364.26,0.00028767,2]
[314961573,1708701082360,-500.0,0.00028767,2]
[314961574,1708701082370,-500.0,0.00028767,2]
[314961575,1708701082383,-1724.59,0.00028767,2]
[314961576,1708701082394,-536.00566989,0.00028767,2]
[314961577,1708701082403,-500.0,0.00028767,2]
[314961578,1708701082412,-3079.27,0.00028767,2]
[314961579,1708701082422,-500.0,0.00028767,2]
[314961580,1708701082431,-3702.56,0.00028767,2]
[314961581,1708701082440,-1264.0,0.00028767,2]
[314961582,1708701082449,-500.0,0.00028767,2]
[314961583,1708701082459,-500.0,0.00028767,2]
[314961584,1708701082469,-500.0,0.00028767,2]
[314961585,1708701082479,-500.0,0.00028767,2]
[314961586,1708701082488,-1030.19,0.00028767,2]
[314961587,1708701082498,-4692.19,0.00028767,2]
[314961588,1708701082508,-500.0,0.00028767,2]
[314961589,1708701082518,-500.0,0.00028767,2]
[314961590,1708701082527,-500.0,0.00028767,2]
[314961591,1708701082537,-200.0,0.000288,2]
[314961592,1708701082547,-2712.89,0.00028822,2]
[314961593,1708701082556,-1029.2328662,0.00028841,4]
[314961594,1708701082566,-153.41,0.00028842,2]
[314961595,1708701082575,-362.03938643,0.00028847,2]
[314961596,1708701082585,-3320.06043837,0.00028853,2]
[314961597,1708701082594,-4789.15098206,0.0002888,2]
[314961598,1708701082604,-540.1,0.00028904,2]
[314961599,1708701082614,-793.3,0.00028904,2]
[314961600,1708701082627,-630.6,0.00028904,2]
[314961601,1708701082636,-661.87,0.00028904,2]
[314961602,1708701082645,-587.13,0.00028904,2]
[314961603,1708701082655,-500.0,0.00028904,2]
[314961604,1708701082665,-500.0,0.00028904,2]
[314961605,1708701082674,-250.5,0.00028904,2]
[314961606,1708701082684,-681.65,0.00028904,2]
[314961607,1708701082693,-801.8,0.00028904,2]
[314961608,1708701082702,-353.37264688,0.00028904,2]
[314961609,1708701082711,-500.0,0.00028904,2]
[314961610,1708701082720,-813.81,0.00028904,2]
[314961611,1708701082729,-500.0,0.00028904,2]
[314961612,1708701082739,-500.0,0.00028904,2]
[314961613,1708701082748,-4432.9,0.00028904,2]
[314961614,1708701082757,-1274.45,0.00028904,2]
[314961615,1708701082766,-500.0,0.00028904,2]
[314961616,1708701082776,-1366.3,0.00028904,2]
[314961617,1708701082786,-564.85,0.00028904,2]
[314961618,1708701082795,-983.57,0.00028904,2]
[314961619,1708701082804,-1193.57,0.00028904,2]
[314961620,1708701082813,-792.31,0.00028904,2]
[314961621,1708701082822,-750.59,0.00028904,2]
[314961622,1708701082831,-500.0,0.00028904,2]
[314961623,1708701082841,-991.76,0.00028904,2]
[314961624,1708701082850,-500.0,0.00028904,2]
[314961625,1708701082859,-666.52,0.00028904,2]
[314961626,1708701082869,-523.78,0.00028904,2]
[314961627,1708701082882,-991.02,0.00028904,2]
[314961628,1708701082891,-631.57,0.00028904,2]
[314961629,1708701082901,-1046.15,0.00028904,2]
[314961630,1708701082910,-521.94,0.00028904,2]
[314961631,1708701082919,-1367.88,0.00028904,2]
[314961632,1708701082929,-500.0,0.00028904,2]
[314961633,1708701082938,-500.0,0.00028904,2]
[314961634,1708701082948,-500.0,0.00028904,2]
[314961635,1708701082957,-763.41,0.00028904,2]
[314961636,1708701082967,-500.0,0.00028904,2]
[314961637,1708701082976,-500.0,0.00028904,2]
[314961638,1708701082985,-500.0,0.00028904,2]
[314961639,1708701082995,-500.0,0.00028904,2]
[314961640,1708701083005,-3364.26,0.00028904,2]
[314961641,1708701083014,-500.0,0.00028904,2]
[314961642,1708701083024,-500.0,0.00028904,2]
[314961643,1708701083034,-1724.59,0.00028904,2]
[314961644,1708701083045,-500.0,0.00028904,2]
[314961645,1708701083054,-3079.27,0.00028904,2]
[314961646,1708701083063,-500.0,0.00028904,2]
[314961647,1708701083072,-3702.56,0.00028904,2]
[314961648,1708701083082,-1264.0,0.00028904,2]
[314961649,1708701083092,-500.0,0.00028904,2]
[314961650,1708701083101,-500.0,0.00028904,2]
[314961651,1708701083111,-500.0,0.00028904,2]
[314961652,1708701083121,-494.15,0.00028904,2]
[314961653,1708701083136,-1030.19,0.00028904,2]
[314961654,1708701083146,-4692.19,0.00028904,2]
[314961655,1708701083155,-500.0,0.00028904,2]
[314961656,1708701083165,-500.0,0.00028904,2]
[314961657,1708701083175,-500.0,0.00028904,2]
[314961658,1708701083184,-164.08227917,0.00028913,2]
[314961659,1708701083194,-9637.30329911,0.0002892,2]
[314961660,1708701083203,-362.03938643,0.00028921,2]
[314961661,1708701083212,-3092.16814372,0.00028927,2]
[314961662,1708701083222,-4789.15098206,0.00028947,2]
[314961663,1708701083233,-224.46441959,0.00028948,2]
[314961664,1708701083242,-224.46441959,0.00028948,2]
[314961665,1708701083252,-30857.94551058,0.00028962,2]
[314961666,1708701083262,-3282.23539462,0.00028964,2]
[314961667,1708701083272,-3320.06043837,0.00028974,2]
[314961668,1708701083282,-3282.23539462,0.00028979,2]
[314961669,1708701083292,-66839.14277898,0.00028995,2]
[314961670,1708701083301,-2000.0,0.00029,2]
[314961671,1708701083314,-500.0,0.00029,2]
[314961672,1708701083323,-1577.1245523,0.00029,2]
[314961673,1708701083334,-528096.0,0.00029,2]
[314961674,1708701083343,-850.0,0.00029,3]
[314961675,1708701083352,-200.0,0.00029,10]
[314961676,1708701083361,-150.1,0.00029,2]
[314961677,1708701083370,-793.3,0.00029041,2]
[314961678,1708701083382,-630.6,0.00029041,2]
[314961679,1708701083392,-661.87,0.00029041,2]
[314961680,1708701083402,-587.13,0.00029041,2]
[314961681,1708701083411,-204.9519271,0.00029041,2]
[314961682,1708701083420,-500.0,0.00029041,2]
[314961683,1708701083430,-681.65,0.00029041,2]
[314961684,1708701083439,-801.8,0.00029041,2]
[314961685,1708701083448,-500.0,0.00029041,2]
[314961686,1708701083458,-813.81,0.00029041,2]
[314961687,1708701083467,-500.0,0.00029041,2]
[314961688,1708701083477,-532.27089818,0.00029041,2]
[314961689,1708701083486,-4432.9,0.00029041,2]
[314961690,1708701083496,-1274.45,0.00029041,2]
[314961691,1708701083505,-500.0,0.00029041,2]
[314961692,1708701083514,-1366.3,0.00029041,2]
[314961693,1708701083524,-564.85,0.00029041,2]
[314961694,1708701083533,-983.57,0.00029041,2]
[314961695,1708701083543,-1193.57,0.00029041,2]
[314961696,1708701083553,-792.31,0.00029041,2]
[314961697,1708701083563,-750.59,0.00029041,2]
[314961698,1708701083572,-500.0,0.00029041,2]
[314961699,1708701083581,-991.76,0.00029041,2]
[314961700,1708701083591,-500.0,0.00029041,2]
[314961701,1708701083600,-666.52,0.00029041,2]
[314961702,1708701083610,-523.78,0.00029041,2]
[314961703,1708701083619,-991.02,0.00029041,2]
[314961704,1708701083633,-631.57,0.00029041,2]
[314961705,1708701083644,-1046.15,0.00029041,2]
[314961706,1708701083654,-521.94,0.00029041,2]
[314961707,1708701083663,-1367.88,0.00029041,2]
[314961708,1708701083673,-500.0,0.00029041,2]
[314961709,1708701083683,-309.6639794,0.00029041,2]
[314961710,1708701083692,-500.0,0.00029041,2]
[314961711,1708701083702,-763.41,0.00029041,2]
[314961712,1708701083712,-500.0,0.00029041,2]
[314961713,1708701083722,-500.0,0.00029041,2]
[314961714,1708701083731,-500.0,0.00029041,2]
[314961715,1708701083741,-500.0,0.00029041,2]
[314961716,1708701083750,-3364.26,0.00029041,2]
[314961717,1708701083760,-478.61598238,0.00029041,2]
[314961718,1708701083769,-500.0,0.00029041,2]
[314961719,1708701083779,-1724.59,0.00029041,2]
[314961720,1708701083788,-500.0,0.00029041,2]
[314961721,1708701083798,-3079.27,0.00029041,2]
[314961722,1708701083808,-500.0,0.00029041,2]
[314961723,1708701083817,-3702.56,0.00029041,2]
[314961724,1708701083827,-1264.0,0.00029041,2]
[314961725,1708701083836,-500.0,0.00029041,2]
[314961726,1708701083846,-500.0,0.00029041,2]
[314961727,1708701083856,-500.0,0.00029041,2]
[314961728,1708701083866,-1030.19,0.00029041,2]
[314961729,1708701083878,-4692.19,0.00029041,2]
[314961730,1708701083888,-500.0,0.00029041,2]
[314961731,1708701083898,-500.0,0.00029041,2]
[314961732,1708701083907,-500.0,0.00029041,2]
[314961733,1708701083916,-793.3,0.00029178,2]
[314961734,1708701083925,-630.6,0.00029178,2]
[314961735,1708701083933,-661.87,0.00029178,2]
[314961736,1708701083942,-587.13,0.00029178,2]
[314961737,1708701083951,-500.0,0.00029178,2]
[314961738,1708701083960,-681.65,0.00029178,2]
[314961739,1708701083969,-801.8,0.00029178,2]
[314961740,1708701083978,-177.15570967,0.00029178,2]
[314961741,1708701083988,-813.81,0.00029178,2]
[314961742,1708701083998,-500.0,0.00029178,2]
[314961743,1708701084008,-4432.9,0.00029178,2]
[314961744,1708701084018,-1274.45,0.00029178,2]
[314961745,1708701084027,-500.0,0.00029178,2]
[314961746,1708701084037,-983.57,0.00029178,2]
[314961747,1708701084047,-564.85,0.00029178,2]
[314961748,1708701084056,-1366.3,0.00029178,2]
[314961749,1708701084066,-1193.57,0.00029178,2]
[314961750,1708701084076,-792.31,0.00029178,2]
[314961751,1708701084086,-750.59,0.00029178,2]
[314961752,1708701084096,-500.0,0.00029178,2]
[314961753,1708701084107,-991.76,0.00029178,2]
[314961754,1708701084117,-500.0,0.00029178,2]
[314961755,1708701084128,-666.52,0.00029178,2]
[314961756,1708701084139,-523.78,0.00029178,2]
[314961757,1708701084149,-991.02,0.00029178,2]
[314961758,1708701084158,-631.57,0.00029178,2]
[314961759,1708701084168,-1046.15,0.00029178,2]
[314961760,1708701084178,-521.94,0.00029178,2]
[314961761,1708701084188,-1367.88,0.00029178,2]
[314961762,1708701084198,-500.0,0.00029178,2]
[314961763,1708701084208,-500.0,0.00029178,2]
[314961764,1708701084219,-763.41,0.00029178,2]
[314961765,1708701084228,-500.0,0.00029178,2]
[314961766,1708701084238,-500.0,0.00029178,2]
[314961767,1708701084248,-500.0,0.00029178,2]
[314961768,1708701084258,-565.28622882,0.00029178,2]
[314961769,1708701084267,-3364.26,0.00029178,2]
[314961770,1708701084276,-500.0,0.00029178,2]
[314961771,1708701084290,-1724.59,0.00029178,2]